bitfinex/quotes_ETHUSD_20220215
["timestamp","ask_amount","ask_price","bid_price","bid_amount"]
[1644953064112,1.0581122,3114.4,3114.2,0.05530555]
[1644953064313,1.8609922,3114.4,3114.2,0.05530555]
[1644953064513,2.6639022,3114.4,3114.3,0.3059416]
[1644953064712,2.6639022,3114.4,3114.2,0.05530555]
[1644953065317,11.00343137,3114.3,3114.2,0.05530555]
[1644953065514,25.56,3114.3,3114.2,0.05530555]
[1644953066557,25.56,3114.3,3113.1,0.60941577]
[1644953066558,1.60605,3114.0,3113.1,0.60941577]
[1644953066760,20.36605,3114.0,3113.1,0.60941577]
[1644953066966,20.56302,3114.0,3112.9,12.31671577]
[1644953067165,20.56302,3114.0,3112.9,7.88941577]
[1644953067562,1.1288034,3113.0,3112.9,7.88941577]
[1644953067861,1.1288034,3113.0,3112.9,7.28]
[1644953068361,1.1288034,3113.0,3112.8,0.81442141]
[1644953068560,3.37131578,3113.5,3112.8,1.42383718]
[1644953068760,0.80308,3113.4,3112.8,1.42383718]
[1644953068963,0.80308,3113.4,3112.8,1.41250577]
[1644953069162,1.1625,3113.7,3113.0,0.61224839]
[1644953069163,4.56223387,3113.7,3113.0,0.61224839]
[1644953069363,1.1625,3113.7,3113.1,0.80301]
[1644953069763,13.47403349,3113.9,3113.2,0.3]
[1644953069962,1.85223454,3113.6,3113.2,0.3]
[1644953070419,1.85223454,3113.6,3113.4,0.00205162]
[1644953071418,1.85127103,3113.6,3113.2,0.3]
[1644953071626,1.85127103,3113.6,3113.3,0.002835]
[1644953071818,1.85030752,3113.6,3113.3,0.002835]
[1644953072018,1.04632553,3113.6,3113.4,0.80295]
[1644953072219,8.71108349,3113.9,3113.5,0.3]
[1644953072518,1.2366,3114.1,3113.4,0.3]
[1644953072519,4.60919391,3114.1,3113.4,0.3]
[1644953072718,1.2366,3114.1,3113.4,0.3]
[1644953072920,1.2366,3114.1,3113.5,0.00283487]
[1644953073119,1.03221804,3114.0,3113.5,0.80571487]
[1644953073320,1.03221804,3114.0,3113.5,1.40571487]
[1644953073519,1.03221804,3114.0,3113.5,0.60283487]
[1644953073720,1.03221804,3114.0,3113.5,0.6]
[1644953074064,1.03221804,3114.0,3113.6,0.00283484]
[1644953074564,1.03221804,3114.0,3113.6,0.30283484]
[1644953074968,3.38467285,3114.3,3113.6,0.3]
[1644953075170,0.04543394,3114.6,3113.7,1.05278]
[1644953075367,1.2276,3115.0,3113.7,0.55]
[1644953075669,1.2276,3115.0,3113.7,1.05286]
[1644953075866,1.2276,3115.0,3113.7,1.5345249]
[1644953076067,0.80267,3114.9,3113.8,1.7659954]
[1644953076269,0.80267,3114.9,3113.8,2.5687554]
[1644953076469,0.92979882,3114.6,3114.2,0.00283444]
[1644953077269,1.2276,3115.0,3114.2,0.00283444]
[1644953077270,0.80272,3114.7,3114.2,0.00283444]
[1644953077469,0.80272,3114.7,3114.0,0.3]
[1644953077671,0.80272,3114.7,3114.2,0.00283441]
[1644953077934,0.80272,3114.7,3114.2,0.80559441]
[1644953078132,0.80272,3114.7,3114.2,1.10559441]
[1644953078337,1.04850346,3114.5,3114.2,0.30283441]
[1644953078533,1.04850346,3114.5,3113.9,1.60546]
[1644953078534,0.58358928,3114.5,3114.0,0.3]
[1644953078736,0.58358928,3114.5,3114.1,0.4816299]
[1644953079035,0.58358928,3114.5,3114.3,0.00283437]
[1644953079832,0.58358928,3114.5,3114.2,0.00424488]
[1644953080033,0.58358928,3114.5,3114.2,0.00707929]
[1644953080432,1.38636928,3114.5,3114.2,0.00707929]
[1644953080634,1.38636928,3114.5,3114.2,0.80984929]
[1644953080833,1.38636928,3114.5,3114.2,1.10984929]
[1644953081032,1.38636928,3114.5,3114.2,1.10701488]
[1644953081233,1.38636928,3114.5,3114.2,1.10984932]
[1644953081974,0.80274,3114.6,3114.3,0.80273]
[1644953082170,0.80274,3114.6,3114.3,0.80697488]
[1644953082773,0.80274,3114.6,3114.3,0.00424488]
[1644953083171,0.80274,3114.6,3114.2,0.80559444]
[1644953083371,0.80274,3114.6,3114.3,0.00424488]
[1644953083772,0.80274,3114.6,3114.3,0.00707925]
[1644953083972,0.80278,3114.8,3114.3,0.00707925]
[1644953083973,0.80289,3114.4,3114.3,0.00707925]
[1644953084575,0.80289,3114.4,3113.8,0.00424488]
[1644953084774,0.80289,3114.4,3114.2,0.00283444]
[1644953085324,1.89010319,3114.5,3114.2,0.00283444]
[1644953085722,1.08733319,3114.5,3114.2,0.80277]
[1644953085921,1.08733319,3114.5,3114.3,0.29284413]
[1644953086123,1.08733319,3114.5,3114.3,0.00424488]
[1644953086324,1.08733319,3114.5,3114.4,0.29284003]
[1644953086523,2.95563334,3114.5,3114.4,0.29284003]
[1644953086723,6.37588789,3114.5,3114.4,0.29284003]
[1644953086923,2.95563334,3114.5,3114.4,0.29284003]
[1644953087323,2.95563334,3114.5,3114.3,0.00283437]
[1644953087524,1.06552015,3114.4,3114.3,0.00707925]
[1644953087724,1.89011319,3114.5,3114.3,0.29991928]
[1644953087923,1.89011319,3114.5,3114.4,0.29284003]
[1644953088123,2.9555066,3114.5,3114.4,0.29284003]
[1644953088323,1.08733319,3114.5,3114.4,0.29284003]
[1644953088524,2.15294513,3114.5,3114.2,0.29567444]
[1644953088724,1.08733319,3114.5,3114.2,0.29991932]
[1644953088924,1.08733319,3114.5,3114.3,0.29284003]
[1644953089160,1.08733319,3114.5,3114.3,0.29708491]
[1644953089360,1.08733319,3114.5,3114.4,0.29284003]
[1644953089565,2.15290618,3114.5,3114.4,0.29284003]
[1644953090264,2.95568618,3114.5,3114.2,0.29567444]
[1644953090462,1.89011319,3114.5,3114.2,0.29991932]
[1644953090663,1.89011319,3114.5,3114.3,0.29284003]
[1644953090862,1.89011319,3114.5,3114.3,0.29708491]
[1644953091063,1.89011319,3114.5,3114.4,0.29284003]
[1644953091266,2.9557076,3114.5,3114.4,0.29284003]
[1644953091665,2.9557076,3114.5,3114.2,0.29567447]
[1644953091862,1.89011319,3114.5,3114.3,0.29284003]
[1644953092064,1.89011319,3114.5,3114.3,0.29991928]
[1644953092267,1.08733319,3114.5,3114.4,0.29284003]
[1644953092465,2.1529909,3114.5,3114.4,0.29284003]
[1644953093114,2.1529909,3114.5,3114.2,1.09562003]
[1644953093315,1.08733319,3114.5,3114.3,0.2956744]
[1644953093515,1.08733319,3114.5,3114.3,0.29991928]
[1644953093716,1.08733319,3114.5,3114.4,0.29284003]
[1644953094016,2.15312707,3114.5,3114.4,0.29284003]
[1644953094820,1.08733319,3114.5,3114.4,0.29284003]
[1644953096665,2.15327756,3114.5,3114.4,0.29284003]
[1644953096859,2.95604756,3114.5,3114.4,0.29284003]
[1644953098362,2.95604756,3114.5,3114.3,0.2956744]
[1644953098661,1.89010319,3114.5,3114.4,0.29284003]
[1644953098861,1.89010319,3114.5,3114.3,0.2956744]
[1644953098862,2.95652521,3114.5,3114.3,0.2956744]
[1644953099062,1.0665577,3114.4,3114.3,0.29284003]
[1644953099261,1.06655906,3114.4,3114.3,0.2956744]
[1644953099461,1.0665671,3114.4,3114.3,0.2956744]
[1644953099660,1.06657041,3114.4,3114.3,0.2956744]
[1644953099862,1.89010319,3114.5,3114.3,0.2956744]
[1644953100064,1.06655633,3114.4,3114.3,0.2956744]
[1644953100308,1.06655353,3114.4,3114.3,0.29284003]
[1644953100509,0.80279,3114.4,3114.3,0.29284003]
[1644953100910,1.86928313,3114.4,3114.3,0.29284003]
[1644953101109,0.80279,3114.4,3114.3,0.29284003]
[1644953101314,1.8695157,3114.4,3114.2,0.29567444]
[1644953101512,1.08733319,3114.5,3114.4,0.00174238]
[1644953101911,2.16909491,3114.5,3114.4,0.00174238]
[1644953102514,6.24183683,3114.5,3114.4,0.00174238]
[1644953102718,26.00183683,3114.5,3114.4,0.00174238]
[1644953102914,27.31061541,3114.5,3114.4,0.00174238]
[1644953103513,28.21985669,3114.5,3114.4,0.00174238]
[1644953103914,9.01361541,3114.5,3114.4,0.00174238]
[1644953104759,8.55061541,3114.5,3114.4,0.00174238]
[1644953104960,7.24140054,3114.5,3114.4,0.00174238]
[1644953106261,7.24140054,3114.5,3114.4,0.27998511]
[1644953106460,7.24140054,3114.5,3114.4,0.00174238]
[1644953106863,3.97146862,3114.5,3114.4,0.27998511]
[1644953107262,3.97146862,3114.5,3114.4,0.00174238]
[1644953107263,7.56389562,3114.5,3114.4,0.00174238]
[1644953107463,7.26389562,3114.5,3114.4,0.27998511]
[1644953107662,7.26389562,3114.5,3114.4,0.00174238]
[1644953107911,7.26389562,3114.5,3114.4,0.27998511]
[1644953108116,7.26389562,3114.5,3114.4,0.00174238]
[1644953109214,3.97146862,3114.5,3114.4,0.00174238]
[1644953109414,2.88413543,3114.5,3114.4,0.00174238]
[1644953109614,1.08132543,3114.5,3114.4,0.00174238]
[1644953110014,1.08132543,3114.5,3114.4,0.28010656]
[1644953110216,1.08132543,3114.5,3114.4,0.00174238]
[1644953112764,1.08132543,3114.5,3114.4,0.28010656]
[1644953113169,8.8675,3115.1,3114.4,0.28010656]
[1644953113365,0.65467522,3115.4,3114.4,0.28010656]
[1644953113366,1.08205341,3115.0,3114.4,0.28010656]
[1644953113566,1.08205341,3114.9,3114.5,0.27836418]
[1644953113764,0.60924128,3115.5,3114.5,0.27836418]
[1644953113765,1.08205341,3114.8,3114.6,0.27836418]
[1644953113965,1.07679312,3115.2,3114.6,0.27836418]
[1644953114164,1.08216809,3115.1,3114.6,0.27836418]
[1644953114565,1.08216809,3115.1,3114.4,4.28201655]
[1644953114566,1.08216809,3115.1,3114.7,0.27836418]
[1644953114766,1.08216809,3115.1,3114.8,0.27836418]
[1644953114965,1.08216809,3115.1,3114.9,0.27836418]
[1644953115165,1.08216809,3115.1,3115.0,0.27836418]
[1644953115420,4.33786534,3115.1,3115.0,0.27836418]
[1644953115621,4.33786534,3115.1,3114.4,0.28010656]
[1644953115821,1.04237215,3114.6,3114.4,0.28010656]
[1644953116017,0.80276,3114.7,3114.4,0.00174238]
[1644953116518,0.80276,3114.7,3114.4,0.28010656]
[1644953116519,1.08196582,3114.6,3114.4,0.28010656]
[1644953116721,3.28311965,3114.5,3114.4,0.28010656]
[1644953116919,5.16792547,3114.5,3114.4,0.28010656]
[1644953117522,6.19199471,3114.5,3114.4,0.28010656]
[1644953118327,7.49199471,3114.5,3114.4,0.28010656]
[1644953119164,7.49199471,3114.5,3114.3,0.00267407]
[1644953119165,6.8,3114.4,3114.3,0.00267407]
[1644953119363,14.12241821,3114.4,3113.6,0.00424488]
[1644953119563,0.85673393,3113.9,3113.6,0.00424488]
[1644953119764,0.85673393,3113.9,3113.8,0.01069788]
[1644953120267,4.54885721,3113.9,3113.8,0.01069788]
[1644953120467,4.24885721,3113.9,3113.8,0.01069788]
[1644953120666,4.24885721,3113.9,3112.9,3.0886]
[1644953120667,5.05183721,3113.9,3113.2,0.60941577]
[1644953120869,5.05183721,3113.9,3113.7,0.00268971]
[1644953121567,3.25150421,3113.8,3113.7,0.00268971]
[1644953121766,3.25150421,3113.8,3113.3,0.00424488]
[1644953121967,4.05449421,3113.8,3113.3,0.00424488]
[1644953122166,4.05449421,3113.8,3113.6,0.00268974]
[1644953123018,1.1647,3114.3,3113.3,0.00424488]
[1644953123019,1.1647,3114.3,3113.8,0.65605451]
[1644953123423,2.2463,3114.6,3113.8,0.65605451]
[1644953123620,0.80278,3114.6,3113.8,0.95605451]
[1644953123821,6.8598,3114.8,3113.8,1.25605451]
[1644953124021,7.55927653,3114.8,3113.8,1.25605451]
[1644953124220,4.05927653,3114.8,3113.8,1.25605451]
[1644953124420,4.05927653,3114.8,3114.1,0.00268601]
[1644953124421,0.78014223,3114.8,3114.1,0.00268601]
[1644953124719,0.78014223,3114.8,3114.2,0.80277]
[1644953124921,0.80274,3114.8,3114.2,0.80277]
[1644953125320,2.4518,3114.9,3114.2,1.10277]
[1644953125521,3.5,3115.0,3114.2,1.10277]
[1644953125720,6.16402128,3115.1,3114.3,0.00268588]
[1644953125924,6.16402128,3115.1,3114.4,0.8027]
[1644953126120,0.8027,3114.9,3114.3,0.00268588]
[1644953126320,3.34157837,3114.8,3114.3,0.00268588]
[1644953126562,3.34157837,3114.8,3114.0,0.3]
[1644953126764,1.60557,3114.9,3113.8,1.56547028]
[1644953126965,4.89273216,3114.9,3114.3,0.0026859]
[1644953127566,0.80278,3114.7,3114.3,0.0026859]
[1644953127765,0.80278,3114.7,3113.8,0.95605451]
[1644953127967,1.33703788,3115.1,3114.0,0.80282]
[1644953128167,2.5901,3115.2,3114.3,0.00268665]
[1644953128368,2.5901,3115.2,3114.3,0.25268665]
[1644953128765,3.39273,3115.2,3114.3,0.25268665]
[1644953128966,0.96946999,3114.7,3114.5,0.8026]
[1644953129165,2.21458128,3115.2,3114.5,0.8026]
[1644953129566,3.21458128,3115.2,3114.5,0.8026]
[1644953130065,1.0,3115.2,3114.5,0.8026]
[1644953130311,3.12821662,3115.3,3114.6,0.3]
[1644953130512,6.39060006,3115.3,3114.6,1.10267]
[1644953130815,3.12821662,3115.3,3114.6,1.10267]
[1644953131013,1.88181662,3115.3,3114.6,1.10267]
[1644953131712,4.06341756,3115.2,3114.4,1.60519]
[1644953131913,0.60924128,3115.0,3114.3,0.00268655]
[1644953132112,3.99682203,3114.9,3114.3,0.00268655]
[1644953132313,2.6056992,3114.8,3114.3,0.00268655]
[1644953132515,3.56596888,3114.7,3114.3,0.00268655]
[1644953132713,3.56596888,3114.7,3113.8,0.86231442]
[1644953132915,1.0,3114.6,3114.3,0.00268646]
[1644953133215,0.96340582,3114.4,3114.3,0.00268646]
[1644953133818,0.96340582,3114.4,3113.8,0.65605451]
[1644953134068,0.96340582,3114.4,3113.8,1.25605451]
[1644953134266,0.96340582,3114.4,3114.2,0.00268655]
[1644953134966,2.85065,3114.8,3114.2,0.00268655]
[1644953134967,1.245,3114.8,3114.2,0.00268655]
[1644953135265,1.245,3114.8,3113.8,1.86547028]
[1644953135266,1.245,3114.8,3114.1,0.00268663]
[1644953135666,1.245,3114.8,3114.2,0.8028]
[1644953135867,3.27326546,3114.9,3114.2,0.8028]
[1644953135868,0.80277,3114.7,3114.2,0.8028]
[1644953136068,3.27306996,3114.9,3114.2,0.8028]
[1644953136069,0.91122901,3114.8,3114.2,0.8028]
[1644953136474,0.91122901,3114.8,3114.3,0.00268653]
[1644953137072,1.0,3115.0,3114.4,0.80271]
[1644953137673,1.60924128,3115.2,3114.4,1.10271]
[1644953137919,3.27971467,3115.1,3114.4,0.3]
[1644953138119,3.27971467,3115.1,3114.6,0.8027]
[1644953138120,0.83916246,3114.9,3114.6,0.8027]
[1644953138318,0.80272,3114.8,3114.6,0.8027]
[1644953138518,0.80272,3114.8,3114.4,0.3]
[1644953139123,1.1052117,3114.7,3114.5,0.25449655]
[1644953139320,1.1052117,3114.8,3114.5,0.25449655]
[1644953139619,1.1052117,3114.8,3114.5,1.05722655]
[1644953139819,1.1052117,3114.8,3114.6,0.55449655]
[1644953140021,1.1052117,3114.8,3114.7,0.25449655]
[1644953140823,1.1052117,3114.8,3114.5,1.10272]
[1644953140824,1.1052117,3114.8,3114.6,0.25449655]
[1644953141023,1.1052117,3114.8,3114.7,0.25449655]
[1644953141323,1.1052117,3114.8,3114.6,0.25449655]
[1644953141561,1.1052117,3114.8,3114.7,0.25449655]
[1644953142163,1.1052117,3115.0,3114.7,0.25449655]
[1644953142564,1.1052117,3115.0,3114.8,0.25449655]
[1644953142762,1.1052117,3115.0,3114.9,0.25449655]
[1644953142963,1.9079317,3115.0,3114.5,0.25448679]
[1644953143164,1.74824128,3115.3,3114.5,0.25448679]
[1644953143165,1.1052117,3114.9,3114.7,0.80269]
[1644953143364,2.89,3115.4,3114.7,0.80269]
[1644953143365,1.1052117,3115.2,3114.8,0.25448679]
[1644953143563,1.1052117,3115.1,3114.8,0.25448679]
[1644953143765,1.1052117,3115.0,3114.9,0.25448679]
[1644953143963,1.1052117,3115.0,3114.7,0.25448679]
[1644953144163,1.75195495,3115.4,3114.7,0.55448679]
[1644953144367,1.1051109,3115.3,3114.8,0.25448679]
[1644953145618,1.1051109,3115.3,3114.9,0.8026]
[1644953145916,1.1051109,3115.3,3115.0,0.25448679]
[1644953146215,1.1051109,3115.3,3114.8,0.4815521]
[1644953146216,1.1051109,3115.3,3115.1,0.25426192]
[1644953146518,0.4135419,3115.0,3114.8,0.4815521]
[1644953146715,0.4135419,3115.0,3114.9,1.85938251]
[1644953147116,1.51829828,3115.0,3114.9,1.85938251]
[1644953147719,1.51829828,3115.0,3114.9,0.25423251]
[1644953148321,1.51829828,3115.0,3114.0,1.07241577]
[1644953148322,1.51829828,3115.0,3114.1,0.3]
[1644953148519,1.10475638,3114.9,3114.3,0.00268659]
[1644953149063,1.10475638,3114.9,3114.5,0.80277]
[1644953149266,1.10475638,3114.9,3114.6,0.25435591]
[1644953149469,1.10475638,3114.9,3114.7,0.25435591]
[1644953149664,1.10475638,3114.9,3114.8,0.25435591]
[1644953150064,1.10475638,3114.9,3114.5,0.481612]
[1644953150265,1.10475638,3114.9,3114.6,0.25435591]
[1644953150465,1.10475638,3114.9,3114.7,0.25435591]
[1644953150666,1.10475638,3114.9,3114.8,0.25435591]
[1644953150869,0.54832409,3114.7,3114.4,0.80266]
[1644953151166,0.54832409,3114.7,3114.3,0.00268654]
[1644953151167,1.91233463,3114.6,3114.5,0.24953319]
[1644953151372,1.10962463,3114.6,3114.5,0.24953319]
[1644953151766,1.10962463,3114.9,3114.5,0.24953319]
[1644953151969,1.10962463,3114.8,3114.6,0.24959356]
[1644953152168,0.80272,3114.8,3114.7,0.24959356]
[1644953152368,1.91238663,3114.8,3114.7,0.24959356]
[1644953152570,1.91238663,3114.8,3114.3,0.25228006]
[1644953152815,1.10966663,3114.7,3114.4,0.24959356]
[1644953153013,2.02453762,3114.6,3114.5,0.24959356]
[1644953153413,2.02453762,3114.6,3114.3,1.05498006]
[1644953153618,0.91487099,3114.6,3114.4,0.24959356]
[1644953154114,3.26213335,3114.7,3114.4,0.24959356]
[1644953154315,1.0,3114.7,3114.4,0.24959356]
[1644953154519,1.10990525,3114.5,3114.3,0.25228005]
[1644953154819,1.0,3114.8,3114.4,0.24959356]
[1644953155016,1.0,3114.8,3114.3,0.00268649]
[1644953155017,1.6059,3114.7,3114.3,0.00268649]
[1644953155219,1.91261401,3114.6,3114.3,0.00268649]
[1644953155515,1.91261401,3114.6,3114.0,0.24978273]
[1644953155516,2.26279109,3114.5,3114.0,0.24978273]
[1644953155716,1.10969401,3114.4,3114.3,0.00268649]
[1644953156115,1.10969401,3114.4,3114.3,0.25246922]
[1644953156317,1.10969401,3114.4,3114.3,0.00268649]
[1644953156586,1.10969401,3114.4,3114.0,0.24978273]
[1644953156587,1.91259401,3114.4,3114.0,0.24978273]
[1644953156777,1.10969401,3114.3,3114.0,0.24978273]
[1644953156975,1.10969401,3114.3,3114.2,0.00268659]
[1644953157978,1.10969401,3114.3,3113.9,0.24978273]
[1644953158176,1.10969401,3114.3,3114.1,0.00268666]
[1644953159179,1.10969401,3114.3,3113.9,0.24978273]
[1644953159379,1.10969401,3114.3,3114.0,0.00268669]
[1644953159782,1.91255401,3114.3,3114.0,0.00268669]
[1644953159982,1.10969401,3114.2,3114.0,0.00268669]
[1644953160183,1.60553,3114.7,3114.0,0.00268669]
[1644953160420,1.10984052,3114.6,3113.9,0.24978273]
[1644953160623,1.10984052,3114.6,3114.0,0.80275]
[1644953160818,1.10984052,3114.6,3114.1,1.05246273]
[1644953161021,1.138,3114.8,3114.2,0.24978273]
[1644953161022,1.10984052,3114.5,3114.2,0.24978273]
[1644953161220,1.138,3114.8,3114.2,0.24978273]
[1644953161419,1.1099225,3114.7,3114.2,0.24978273]
[1644953161620,1.1099225,3114.6,3114.2,1.05240273]
[1644953161819,1.1099225,3114.8,3114.3,0.24978273]
[1644953162021,0.4135419,3115.0,3114.4,0.80258]
[1644953162022,1.1099225,3114.7,3114.4,0.80258]
[1644953162218,1.1099225,3114.6,3114.5,0.24978273]
[1644953162618,1.1099225,3114.9,3114.5,0.24978273]
[1644953162819,1.1099225,3114.6,3114.5,1.05237273]
[1644953163019,1.9125425,3114.8,3114.5,0.80259]
[1644953163220,1.1099225,3114.7,3114.6,0.24963338]
[1644953164064,1.1099225,3114.7,3114.5,0.24963338]
[1644953164264,1.9125825,3114.7,3114.5,0.24963338]
[1644953164466,1.1099225,3114.6,3114.5,0.24963338]
[1644953165266,0.4135419,3115.0,3114.5,0.24963338]
[1644953165466,0.80265,3114.8,3114.5,0.24963338]
[1644953165667,1.11025056,3114.7,3114.5,0.24963338]
[1644953165869,0.4135419,3115.0,3114.5,0.24963338]
[1644953166067,1.11030517,3114.9,3114.5,0.24963338]
[1644953166269,1.04821661,3114.7,3114.5,0.24963338]
[1644953166468,1.11144399,3114.6,3114.3,1.5040124]
[1644953166667,1.11144399,3114.6,3114.4,0.249791]
[1644953166867,2.8216119,3115.0,3114.4,0.249791]
[1644953167068,1.11146951,3114.9,3114.4,0.249791]
[1644953167572,1.11146951,3114.9,3114.3,1.352481]
[1644953167813,0.8027,3114.8,3114.4,0.249791]
[1644953168024,1.11146951,3114.7,3114.4,0.249791]
[1644953168515,2.0189019,3115.0,3114.4,0.249791]
[1644953168715,1.11159822,3114.9,3114.4,0.249791]
[1644953168914,1.11159822,3114.9,3114.4,1.052441]
[1644953169116,1.11159822,3114.9,3114.5,0.85920677]
[1644953169316,1.11159822,3114.9,3114.6,0.463]
[1644953169516,1.11159822,3114.9,3114.6,1.62220677]
[1644953169717,1.11159822,3114.9,3114.7,0.249791]
[1644953169916,1.11159822,3114.9,3114.7,0.651045]
[1644953170121,1.11159822,3114.9,3114.8,0.249791]
[1644953170918,1.11159822,3114.9,3114.8,1.052321]
[1644953171872,1.11159822,3114.9,3114.8,0.249791]
[1644953173075,0.4135419,3115.0,3114.8,0.6510093]
[1644953173278,0.4135419,3115.0,3114.9,0.249791]
[1644953173477,0.4135419,3115.0,3114.9,1.052231]
[1644953173676,1.52511742,3115.0,3114.9,1.052231]
[1644953174777,1.52511742,3115.0,3114.9,0.249791]
[1644953174975,1.52362109,3115.0,3114.9,0.249791]
[1644953175920,1.82362109,3115.0,3114.9,0.249791]
[1644953183724,1.82362109,3115.0,3114.8,0.249791]
[1644953183922,1.82362109,3115.0,3114.3,0.00268658]
[1644953183923,1.11157552,3114.9,3114.3,0.00268658]
[1644953184319,1.11157552,3114.9,3114.3,0.24958135]
[1644953184722,0.80269,3114.8,3114.3,1.45628656]
[1644953184921,1.11157552,3114.7,3114.4,0.24958135]
[1644953185123,1.11157552,3114.7,3114.5,0.24958135]
[1644953185323,1.41157552,3114.7,3114.6,0.24958135]
[1644953185725,1.11157552,3114.7,3114.6,0.24958135]
[1644953185925,1.11157552,3114.9,3114.6,0.24958135]
[1644953186124,0.80267,3114.8,3114.7,0.24958135]
[1644953186325,2.21424552,3114.8,3114.4,0.24958135]
[1644953186567,1.11152875,3114.7,3114.4,0.24958135]
[1644953186873,2.01742557,3115.0,3114.8,0.21696799]
[1644953187068,1.11705063,3114.9,3114.8,0.21696799]
[1644953187669,1.11705063,3114.9,3114.8,0.46093811]
[1644953189972,1.11705063,3114.9,3114.8,1.26349811]
[1644953190825,0.41204557,3115.0,3114.8,1.26349811]
[1644953191023,0.41204557,3115.0,3114.9,0.24397012]
[1644953191223,0.41204557,3115.0,3114.9,1.04651012]
[1644953191424,1.52877683,3115.0,3114.9,1.04651012]
[1644953192925,1.52695373,3115.0,3114.9,1.04651012]
[1644953193727,1.52695373,3115.0,3114.9,1.04151091]
[1644953194169,1.52695373,3115.0,3114.9,0.23897091]
[1644953195472,3.42756288,3115.0,3114.9,0.23897091]
[1644953195674,3.42756288,3115.0,3114.9,0.12972434]
[1644953195871,4.72756288,3115.0,3114.9,0.12972434]
[1644953196677,4.42756288,3115.0,3114.9,0.12972434]
[1644953197477,7.55284,3114.9,3114.3,0.00268658]
[1644953197678,7.55284,3114.9,3113.8,1.84169939]
[1644953197679,0.80286,3114.7,3113.8,2.45111516]
[1644953197918,1.8028449,3114.7,3114.3,0.00268658]
[1644953198319,0.8028449,3114.7,3114.3,0.00268658]
[1644953198516,1.0,3114.8,3114.3,0.00268658]
[1644953198717,2.40844,3114.6,3114.3,0.00268658]
[1644953198917,2.40844,3114.6,3114.0,0.00424488]
[1644953199219,1.60565,3114.6,3114.3,0.0026865]
[1644953200019,1.60565,3114.6,3114.0,1.41643065]
[1644953200219,1.60565,3114.6,3114.3,0.00268652]
[1644953200620,1.0,3114.8,3114.3,0.00268652]
[1644953200825,0.41022247,3115.0,3114.3,0.00268652]
[1644953201222,0.41022247,3115.0,3114.1,0.60941577]
[1644953201422,0.41022247,3115.0,3114.2,0.60941577]
[1644953201683,0.41022247,3115.0,3114.3,1.01343519]
[1644953201879,0.41022247,3115.0,3114.5,0.80267]
[1644953202778,0.80264,3114.8,3114.5,0.80267]
[1644953203278,0.80264,3114.8,3114.5,2.0066232]
[1644953204078,0.80264,3114.8,3114.5,1.60531]
[1644953205322,0.80264,3114.8,3114.5,0.80267]
[1644953205724,1.10264,3114.8,3114.5,0.80267]
[1644953206128,0.80275,3114.7,3114.2,0.90941577]
[1644953206326,0.8028,3114.6,3114.3,0.00268652]
[1644953206726,0.82564586,3114.6,3114.3,0.00268652]
[1644953207024,0.80275,3114.7,3114.3,0.00268652]
[1644953207025,1.92809409,3114.7,3114.3,0.00268652]
[1644953207225,0.8028,3114.6,3114.3,0.80278]
[1644953207425,0.8028,3114.6,3114.1,0.90941577]
[1644953207627,0.80281,3114.5,3114.3,0.00268652]
[1644953207825,0.8028,3114.6,3114.3,0.00268652]
[1644953208226,0.8028,3114.6,3114.3,0.80545652]
[1644953208426,0.8028,3114.6,3114.3,0.80277]
[1644953208629,0.8028,3114.6,3114.3,0.80545652]
[1644953208828,1.60559,3114.6,3114.3,0.80545652]
[1644953209468,0.8028,3114.6,3114.3,0.80545652]
[1644953209671,0.8028,3114.6,3114.3,0.80277]
[1644953209870,0.8028,3114.6,3114.3,1.60815652]
[1644953210271,0.8028,3114.6,3114.3,0.80545652]
[1644953210469,0.80265,3114.7,3114.3,0.80545652]
[1644953210872,0.80265,3114.7,3114.3,1.2041065]
[1644953211070,0.80265,3114.7,3114.4,0.80267]
[1644953211871,0.80265,3114.7,3114.4,1.60534]
[1644953212072,2.01556247,3115.0,3114.4,1.203994]
[1644953212270,0.41022247,3115.0,3114.5,1.1026]
[1644953213523,1.21280247,3115.0,3114.5,1.90524]
[1644953214027,1.21280247,3115.0,3114.5,0.3]
[1644953214323,1.21280247,3115.0,3114.3,1.71483232]
[1644953214522,0.80271,3114.9,3114.3,1.71211577]
[1644953214722,1.12097476,3114.7,3114.3,0.80538655]
[1644953214922,1.12097476,3114.7,3114.3,0.00268655]
[1644953215723,1.12097476,3114.7,3114.2,0.4013598]
[1644953215924,1.12097476,3114.7,3114.3,0.0026865]
[1644953216572,1.92368476,3114.7,3114.3,0.0026865]
[1644953216770,2.72644476,3114.7,3114.2,1.10275]
[1644953217270,2.72644476,3114.7,3114.3,0.0026865]
[1644953217470,1.13119948,3114.6,3114.3,0.23276741]
[1644953217771,1.13119948,3114.6,3114.4,0.23008091]
[1644953217971,1.13119948,3114.6,3114.5,0.23008091]
[1644953218171,1.13119948,3114.6,3114.2,0.23008091]
[1644953218370,1.13119948,3114.6,3114.3,0.00268653]
[1644953219372,1.13119948,3114.6,3114.2,0.23008091]
[1644953219573,1.13119948,3114.6,3114.3,0.00268653]
[1644953219574,1.93394948,3114.6,3114.3,0.00268653]
[1644953219773,1.13119948,3114.5,3114.3,0.23276744]
[1644953220423,1.13119948,3114.5,3114.3,0.23008091]
[1644953220633,1.13119948,3114.5,3114.1,0.00424488]
[1644953220634,0.80291,3114.4,3114.2,0.23276747]
[1644953220924,0.80291,3114.4,3114.2,0.00268656]
[1644953220925,1.13119948,3114.3,3114.2,0.00268656]
[1644953221726,1.13119948,3114.3,3114.2,0.23017546]
[1644953221924,1.13119948,3114.3,3114.1,0.00268666]
[1644953221925,2.73702948,3114.3,3114.1,0.00268666]
[1644953222125,1.13119948,3114.2,3114.1,0.00693154]
[1644953222325,1.13119948,3114.2,3114.1,0.237107]
[1644953222527,1.13119948,3114.2,3114.1,0.23286212]
[1644953222727,2.01653846,3114.2,3114.1,0.23286212]
[1644953222927,3.83074846,3114.2,3114.0,0.23017546]
[1644953223126,6.0,3114.1,3114.0,0.00268673]
[1644953223327,7.0,3114.1,3114.0,0.00268673]
[1644953223725,1.0,3114.1,3114.0,0.00268673]
[1644953224173,1.80295,3114.1,3113.9,0.00424488]
[1644953224376,1.0,3114.0,3113.9,0.00693167]
[1644953224570,1.68841898,3114.2,3113.9,0.00693167]
[1644953225373,1.68841898,3114.2,3113.9,0.00424488]
[1644953225581,1.68841898,3114.2,3113.9,0.00693168]
[1644953225773,1.98841898,3114.2,3113.9,0.00693168]
[1644953226273,2.98841898,3114.2,3113.9,0.00693168]
[1644953226472,3.79131898,3114.2,3113.9,0.00424488]
[1644953226673,3.79131898,3114.2,3113.9,0.00693168]
[1644953227071,2.98841898,3114.2,3113.9,0.00693168]
[1644953227472,0.80293,3114.1,3113.9,0.00693168]
[1644953227673,0.80293,3114.1,3113.9,0.00424488]